bitfinex-derivatives/quotes_BTCF0:USTF0_20210409
["timestamp","ask_amount","ask_price","bid_price","bid_amount"]
[1617967303845,1.47191826,58563.0,58562.0,0.94037509]
[1617967304148,1.47191826,58563.0,58562.0,1.04897509]
[1617967305846,1.47191826,58563.0,58562.0,0.94037509]
[1617967307748,1.47191826,58563.0,58562.0,1.08873509]
[1617967310053,1.47191826,58563.0,58562.0,2.08873509]
[1617967310453,1.47191826,58563.0,58562.0,1.08873509]
[1617967313156,1.47191826,58563.0,58562.0,2.08873509]
[1617967313791,0.96755833,58563.0,58562.0,2.08873509]
[1617967314259,0.96755833,58563.0,58562.0,4.03091535]
[1617967314675,0.52370949,58563.0,58562.0,4.03091535]
[1617967315589,0.76729234,58563.0,58562.0,4.03091535]
[1617967315962,0.52370949,58563.0,58562.0,4.03091535]
[1617967321261,0.3026563,58563.0,58562.0,4.03091535]
[1617967323573,0.28235777,58563.0,58562.0,4.03091535]
[1617967325670,0.27555777,58563.0,58562.0,4.03091535]
[1617967326073,0.01022149,58563.0,58562.0,4.03091535]
[1617967326571,0.01022149,58563.0,58562.0,7.59971535]
[1617967326972,0.00516124,58563.0,58562.0,7.59971535]
[1617967327772,0.01022127,58564.0,58562.0,7.59971535]
[1617967327773,0.00516112,58564.0,58562.0,7.59971535]
[1617967328078,0.00516112,58564.0,58563.0,1.0]
[1617967328278,0.00516112,58564.0,58563.0,3.46881871]
[1617967328479,0.00516112,58564.0,58563.0,3.73881871]
[1617967331578,0.01022097,58564.0,58563.0,3.73881871]
[1617967332277,0.36441461,58567.0,58563.0,3.73881871]
[1617967332477,0.0102187,58564.0,58563.0,2.73881871]
[1617967332777,0.0102187,58564.0,58563.0,2.72359552]
[1617967332977,0.0102187,58564.0,58563.0,2.73881893]
[1617967333178,0.0102187,58564.0,58563.0,3.73881893]
[1617967333882,0.00515992,58564.0,58563.0,3.73881893]
[1617967335188,0.00515983,58565.0,58563.0,3.73881893]
[1617967335390,0.00515983,58565.0,58563.0,3.88450893]
[1617967335585,0.00515983,58565.0,58564.0,1.90781896]
[1617967335882,0.00515983,58565.0,58564.0,1.96871144]
[1617967336082,0.00515983,58565.0,58564.0,2.23871144]
[1617967336785,0.00515983,58565.0,58564.0,1.23871144]
[1617967337187,0.01021859,58565.0,58564.0,2.23871144]
[1617967337687,0.01021859,58565.0,58564.0,3.73871144]
[1617967338016,0.00515985,58565.0,58564.0,3.73871144]
[1617967338385,0.00515985,58565.0,58564.0,3.93871144]
[1617967339589,0.00515985,58566.0,58564.0,3.73871144]
[1617967339793,0.00515985,58566.0,58565.0,1.0]
[1617967340301,5.985e-05,58566.0,58565.0,1.28522307]
[1617967340512,5.985e-05,58566.0,58565.0,2.23851149]
[1617967340791,0.01021851,58567.0,58565.0,2.23851149]
[1617967341392,0.01021851,58567.0,58566.0,1.87721298]
[1617967341694,0.01021851,58567.0,58566.0,1.96855075]
[1617967341892,0.01021851,58567.0,58566.0,2.23855075]
[1617967342091,0.01021851,58567.0,58566.0,2.29005075]
[1617967342492,0.01021851,58567.0,58566.0,2.19871298]
[1617967343496,0.01021851,58567.0,58566.0,2.69871298]
[1617967343694,0.01021851,58567.0,58566.0,3.69871298]
[1617967343896,0.35424713,58571.0,58566.0,3.69871298]
[1617967344198,0.35424713,58571.0,58570.0,1.0]
[1617967344397,0.44530048,58576.0,58570.0,1.0]
[1617967344598,0.44530048,58576.0,58570.0,1.27]
[1617967344798,0.44530048,58576.0,58575.0,1.0]
[1617967344997,0.44530048,58576.0,58575.0,1.13419]
[1617967345197,0.44530048,58576.0,58575.0,1.41941308]
[1617967345597,0.32831859,58599.0,58575.0,1.41941308]
[1617967345598,0.44519557,58577.0,58575.0,1.41941308]
[1617967345898,0.44519557,58577.0,58576.0,0.10725655]
[1617967346098,0.44519557,58577.0,58576.0,0.12247948]
[1617967346297,0.44519557,58577.0,58576.0,1.39247948]
[1617967347598,0.44519557,58577.0,58576.0,1.37725655]
[1617967347799,0.44519557,58577.0,58576.0,1.39247961]
[1617967348403,0.44519557,58577.0,58576.0,1.44397961]
[1617967350209,0.44519763,58578.0,58576.0,1.44397961]
[1617967350511,0.24357156,58577.0,58576.0,0.44397961]
[1617967350712,0.24357156,58577.0,58576.0,0.42875655]
[1617967350912,0.24357156,58577.0,58576.0,1.42875655]
[1617967351113,0.44519679,58577.0,58576.0,1.44397962]
[1617967351514,0.24356775,58577.0,58576.0,1.44397962]
[1617967351914,0.44518992,58579.0,58576.0,1.44397962]
[1617967352328,0.44518992,58579.0,58577.0,0.06089113]
[1617967352515,0.44518992,58579.0,58578.0,1.0]
[1617967352714,0.44518992,58579.0,58578.0,1.28522286]
[1617967353621,0.44533559,58581.0,58578.0,1.28522286]
[1617967354115,0.44503069,58583.0,58579.0,0.06088722]
[1617967354417,0.44503069,58583.0,58580.0,1.0]
[1617967354716,0.44503069,58583.0,58582.0,1.0]
[1617967355115,0.44503069,58583.0,58582.0,0.28522195]
[1617967355317,0.44503069,58583.0,58582.0,1.28522195]
[1617967355817,0.74849581,58583.0,58582.0,0.28522195]
[1617967356017,0.74849581,58583.0,58582.0,0.3924785]
[1617967356219,0.74849581,58583.0,58582.0,1.3924785]
[1617967356419,0.74849581,58583.0,58582.0,4.4032785]
[1617967359224,0.74849581,58583.0,58582.0,3.4032785]
[1617967360025,0.74849581,58583.0,58582.0,4.4032785]
[1617967360927,0.74849581,58583.0,58582.0,3.4032785]
[1617967361329,0.74849581,58583.0,58582.0,4.4032785]
[1617967361528,0.74849581,58583.0,58582.0,3.4032785]
[1617967363032,0.74849581,58583.0,58582.0,4.4032785]
[1617967363232,0.74849581,58583.0,58582.0,3.4032785]
[1617967363833,0.74849581,58583.0,58582.0,3.70378307]
[1617967364033,0.72820012,58583.0,58582.0,3.70378307]
[1617967364333,0.97174767,58583.0,58582.0,3.70378307]
[1617967364534,0.97174767,58583.0,58582.0,4.70378307]
[1617967364836,0.72820012,58583.0,58582.0,3.70378307]
[1617967365034,0.97174551,58583.0,58582.0,4.70378307]
[1617967365434,0.97174551,58583.0,58582.0,3.70378307]
[1617967365435,0.72820012,58583.0,58582.0,3.70378307]
[1617967365634,0.72820012,58583.0,58582.0,4.68856112]
[1617967365836,0.72820012,58583.0,58582.0,4.70378258]
[1617967366739,0.72820012,58583.0,58582.0,4.83826258]
[1617967368845,0.72820012,58583.0,58582.0,3.83826258]
[1617967369145,1.09260456,58583.0,58582.0,3.83826258]
[1617967369345,1.09260456,58583.0,58582.0,4.83826258]
[1617967372046,1.09260456,58583.0,58582.0,3.83826258]
[1617967372546,0.66786956,58583.0,58582.0,5.19887173]
[1617967372949,0.66786956,58583.0,58582.0,5.25077173]
[1617967373146,0.66786956,58583.0,58582.0,5.19887173]
[1617967374248,0.66786956,58583.0,58582.0,5.24987173]
[1617967374749,0.66786956,58583.0,58582.0,4.24987173]
[1617967375349,0.66786956,58583.0,58582.0,4.19887173]
[1617967375652,1.01830175,58612.0,58582.0,4.53775801]
[1617967376050,0.70849942,58608.0,58599.0,0.10725655]
[1617967376449,4.52644047,58600.0,58599.0,0.37725655]
[1617967376649,4.52644047,58600.0,58599.0,0.39247699]
[1617967377149,4.52644047,58600.0,58599.0,3.43107699]
[1617967377150,1.74104047,58600.0,58599.0,3.43107699]
[1617967378751,1.74104047,58600.0,58599.0,3.54027699]
[1617967379852,1.17422068,58600.0,58599.0,3.54027699]
[1617967380052,1.17422068,58600.0,58599.0,3.43107699]
[1617967380252,1.41774225,58600.0,58599.0,3.43107699]
[1617967380652,1.74102509,58600.0,58599.0,3.43107699]
[1617967382553,1.74102509,58600.0,58599.0,0.39247699]
[1617967382854,1.17422068,58600.0,58599.0,0.39247699]
[1617967383653,1.17422068,58600.0,58599.0,0.44307699]
[1617967383853,1.74103118,58600.0,58599.0,0.39247699]
[1617967384254,2.16611386,58600.0,58599.0,0.39247699]
[1617967384655,1.59930336,58600.0,58599.0,0.39247699]
[1617967390356,1.59930336,58600.0,58599.0,3.46857699]
[1617967391156,0.44537645,58600.0,58599.0,3.46857699]
[1617967391558,1.25497238,58600.0,58599.0,3.46857699]
[1617967393361,1.82197901,58600.0,58599.0,3.46857699]
[1617967393763,1.25497238,58600.0,58599.0,3.46857699]
[1617967394165,1.49849065,58600.0,58599.0,3.46857699]
[1617967394566,1.25497238,58600.0,58599.0,3.46857699]
[1617967395066,1.82202495,58600.0,58599.0,0.39247699]
[1617967395666,2.82202495,58600.0,58599.0,0.39247699]
[1617967395966,1.82202495,58600.0,58599.0,0.39247699]
[1617967396266,2.17282004,58600.0,58599.0,0.39247699]
[1617967396567,2.17282004,58600.0,58599.0,3.88477699]
[1617967398366,1.60576747,58600.0,58599.0,3.88477699]
[1617967403172,2.17319545,58600.0,58599.0,3.88477699]
[1617967404374,2.15290062,58600.0,58599.0,3.88477699]
[1617967405074,2.29833062,58600.0,58599.0,3.88477699]
[1617967407477,2.15290062,58600.0,58599.0,3.88477699]
[1617967409180,2.15290062,58600.0,58599.0,0.39247699]
[1617967409579,6.59745062,58600.0,58599.0,0.39247699]
[1617967409822,6.96226599,58600.0,58599.0,0.39247699]
[1617967409982,7.96226599,58600.0,58599.0,0.28522044]
[1617967410382,8.75334813,58600.0,58599.0,0.28522044]
[1617967410680,8.95334813,58600.0,58599.0,0.28522044]
[1617967410889,7.95334813,58600.0,58599.0,0.27]
[1617967411080,8.95334813,58600.0,58599.0,0.2947]
[1617967411281,8.95334813,58600.0,58599.0,0.03992158]
[1617967411581,8.95334813,58600.0,58599.0,0.30992158]
[1617967412584,6.12194813,58600.0,58599.0,0.30992158]
[1617967413184,5.66008053,58600.0,58599.0,0.30992158]
[1617967415489,9.33818053,58600.0,58599.0,0.30992158]
[1617967416188,9.80013572,58600.0,58599.0,0.30992158]
[1617967417489,8.80013572,58600.0,58599.0,0.30992158]
[1617967417690,9.80013572,58600.0,58599.0,0.30992158]
[1617967420392,6.12203572,58600.0,58599.0,0.30992158]
[1617967420792,5.66008053,58600.0,58599.0,0.30992158]
[1617967422894,9.16808053,58600.0,58599.0,0.30992158]
[1617967423117,8.16808053,58600.0,58599.0,0.30992158]
[1617967423310,9.16808053,58600.0,58599.0,0.30992158]
[1617967423828,10.33955781,58600.0,58599.0,0.30992158]
[1617967424897,10.31926024,58600.0,58599.0,0.30992158]
[1617967425199,10.31926024,58600.0,58599.0,0.30890669]
[1617967427105,9.31926024,58600.0,58599.0,0.30890669]
[1617967427404,10.31926024,58600.0,58599.0,0.30890669]
[1617967429708,5.81126024,58600.0,58599.0,0.30890669]
[1617967429916,6.81126024,58600.0,58599.0,2.82710669]
[1617967430117,6.34922015,58600.0,58599.0,2.82710669]
[1617967432112,6.34922015,58600.0,58599.0,0.30890669]
[1617967432314,9.31902015,58600.0,58599.0,0.30890669]
[1617967432814,9.77920255,58600.0,58599.0,0.30890669]
[1617967433011,9.77920255,58600.0,58599.0,0.30870669]
[1617967435328,9.77920255,58600.0,58599.0,0.30769182]
[1617967439120,9.77920255,58600.0,58599.0,0.30749182]
[1617967440722,8.77920255,58600.0,58599.0,0.30749182]
[1617967440922,9.77920255,58600.0,58599.0,0.30749182]
[1617967445029,9.75890523,58600.0,58599.0,0.30749182]
[1617967445931,9.75890523,58600.0,58599.0,0.30647696]
[1617967446332,8.75890523,58600.0,58599.0,0.30647696]
[1617967446631,9.75890523,58600.0,58599.0,0.30647696]
[1617967448332,9.55890523,58600.0,58599.0,0.30647696]
[1617967448735,8.05890523,58600.0,58599.0,0.30647696]
[1617967449431,8.05890523,58600.0,58599.0,3.38637696]
[1617967449642,7.34946804,58600.0,58599.0,3.38637696]
[1617967450131,8.84946804,58600.0,58599.0,3.38637696]
[1617967450430,7.84946804,58600.0,58599.0,3.38637696]
[1617967450631,8.84946804,58600.0,58599.0,3.38637696]
[1617967450830,9.55857572,58600.0,58599.0,3.38637696]
[1617967451331,8.84946804,58600.0,58599.0,3.38637696]
[1617967453833,7.34946804,58600.0,58599.0,3.38637696]
[1617967454032,6.34946804,58600.0,58599.0,3.38637696]
[1617967454533,6.88928564,58600.0,58599.0,3.52613696]
[1617967455333,7.34346715,58600.0,58599.0,3.52613696]
[1617967456837,6.34346715,58600.0,58599.0,3.52613696]
[1617967457439,6.34346715,58600.0,58599.0,0.44623696]
[1617967457641,6.34346715,58600.0,58599.0,0.30647696]
[1617967458041,5.88928564,58600.0,58599.0,0.30647696]
[1617967459848,6.34345818,58600.0,58599.0,0.30647696]
[1617967460347,5.88928564,58600.0,58599.0,0.30647696]
[1617967462150,6.88928564,58600.0,58599.0,0.30647696]
[1617967462749,7.34447802,58600.0,58599.0,0.30647696]
[1617967463950,4.37467802,58600.0,58599.0,0.30647696]
[1617967464156,3.26152802,58600.0,58599.0,0.30647696]
[1617967464358,3.26152802,58600.0,58599.0,2.84187696]
[1617967464557,3.26152802,58600.0,58599.0,2.94913351]
[1617967464755,2.4771211,58600.0,58599.0,3.14913351]
[1617967465451,2.45682835,58600.0,58599.0,2.94913351]
[1617967465652,1.88940037,58600.0,58599.0,2.94913351]
[1617967466752,1.88940037,58600.0,58599.0,2.94893351]
[1617967467253,1.88940037,58600.0,58599.0,3.14893351]
[1617967467654,1.88940037,58600.0,58599.0,4.14893351]
[1617967468454,1.78214382,58600.0,58599.0,4.14893351]
[1617967468755,1.78214382,58600.0,58599.0,4.44894316]
[1617967469156,1.53860528,58600.0,58599.0,4.44894316]
[1617967469757,1.78209504,58600.0,58599.0,4.44894316]
[1617967470157,1.53860528,58600.0,58599.0,3.44874316]
[1617967471457,1.53860528,58600.0,58599.0,4.44874316]
[1617967472061,1.53860528,58600.0,58599.0,3.24874316]
[1617967473763,1.03263312,58600.0,58599.0,2.94873351]
[1617967476669,1.03263312,58600.0,58599.0,4.08475351]
[1617967476967,0.66843914,58600.0,58599.0,4.38388317]
[1617967477268,0.91191041,58600.0,58599.0,4.38388317]
[1617967477766,0.66843914,58600.0,58599.0,4.38388317]
[1617967477968,0.66843914,58600.0,58599.0,4.31988317]
[1617967478168,0.91191162,58600.0,58599.0,4.31988317]
[1617967478669,0.66843914,58600.0,58599.0,4.31988317]
[1617967479271,0.66843914,58600.0,58599.0,3.31988317]
[1617967479469,0.66843914,58600.0,58599.0,3.18386317]
[1617967481369,0.66843914,58600.0,58599.0,4.18386317]
[1617967481970,0.66843914,58600.0,58599.0,3.18386317]
[1617967482470,0.66843914,58600.0,58599.0,4.18386317]
[1617967482671,0.66843914,58600.0,58599.0,3.88473351]
[1617967483078,0.66843914,58600.0,58599.0,2.88473351]
[1617967484375,0.66843914,58600.0,58599.0,3.18452803]
[1617967484572,0.66843914,58600.0,58599.0,4.38452803]
[1617967484929,0.30362377,58600.0,58599.0,5.58473351]
[1617967485273,0.30362377,58600.0,58599.0,5.88406874]
[1617967485674,0.01019365,58601.0,58599.0,6.24317971]
[1617967485874,0.29278812,58602.0,58599.0,3.70777971]
[1617967486175,0.50473701,58615.0,58600.0,0.01521611]
[1617967486176,0.36343759,58604.0,58600.0,0.01521611]
[1617967486376,0.36343759,58604.0,58601.0,1.0]
[1617967486576,0.36343832,58605.0,58602.0,0.2]
[1617967486776,0.36343832,58605.0,58603.0,3.8182]
[1617967487078,0.36343832,58605.0,58604.0,1.2]
[1617967487277,0.36343832,58605.0,58604.0,1.2152161]
[1617967487476,0.36343832,58605.0,58604.0,1.4852161]
[1617967488076,0.36343832,58605.0,58604.0,4.5557161]
[1617967488476,0.36343832,58605.0,58604.0,3.5557161]
[1617967488676,0.36343832,58605.0,58604.0,4.5557161]
[1617967491081,0.36343832,58605.0,58604.0,4.3557161]
[1617967491481,0.36343832,58605.0,58604.0,3.3557161]
[1617967493086,0.36343832,58605.0,58604.0,4.5091761]
[1617967494285,0.36341119,58606.0,58604.0,4.5091761]
[1617967494485,0.36341119,58606.0,58604.0,1.4386761]
[1617967494687,0.36341119,58606.0,58605.0,2.75847215]
[1617967494886,0.36341119,58606.0,58605.0,3.75847215]
[1617967495088,0.36341119,58606.0,58605.0,4.02847215]
[1617967495386,0.36341119,58606.0,58605.0,3.02847215]
[1617967496285,0.60305657,58606.0,58605.0,3.02847215]
[1617967496486,0.36341119,58606.0,58605.0,3.02847215]
[1617967496785,0.36341119,58606.0,58605.0,4.02847215]
[1617967497189,0.36341119,58606.0,58605.0,3.02847215]
[1617967498587,0.36341119,58606.0,58605.0,4.02847215]
[1617967499188,0.36322523,58607.0,58605.0,4.02847215]
[1617967499387,0.36322523,58607.0,58606.0,1.0]
[1617967499589,0.36322523,58607.0,58605.0,4.02847215]
[1617967499788,0.36322523,58607.0,58606.0,0.28521534]
[1617967500089,0.36322074,58608.0,58606.0,0.28521534]
[1617967500290,0.36322074,58608.0,58606.0,1.28521534]
[1617967500488,0.36322074,58608.0,58607.0,1.01521527]
[1617967500990,0.36322074,58608.0,58607.0,0.28521527]
[1617967505094,0.59460063,58608.0,58607.0,0.28521527]
[1617967505497,0.36322074,58608.0,58607.0,0.28521527]
[1617967505895,0.34293354,58608.0,58607.0,0.28521527]
[1617967507297,0.34293354,58608.0,58607.0,3.93231527]
[1617967508101,0.57987466,58608.0,58607.0,3.93231527]
[1617967508596,0.34293354,58608.0,58607.0,3.93231527]
[1617967509498,0.34293354,58608.0,58607.0,0.28521527]
[1617967509698,3.84733354,58608.0,58607.0,0.28521527]
[1617967510098,4.0842645,58608.0,58607.0,0.28521527]
[1617967510299,4.52821169,58608.0,58607.0,0.28521527]
[1617967510799,4.84656442,58608.0,58607.0,0.28521527]
[1617967511199,4.89706442,58608.0,58607.0,0.28521527]
[1617967511399,1.39266442,58608.0,58607.0,0.28521527]
[1617967512300,1.02381169,58608.0,58607.0,0.28521527]
[1617967512600,1.52906798,58608.0,58607.0,0.33711527]
[1617967512800,1.52906798,58608.0,58607.0,0.28521527]
[1617967514932,2.52906798,58608.0,58607.0,0.28521527]
[1617967516311,3.39821961,58608.0,58607.0,0.28521527]
[1617967517219,4.89821961,58608.0,58607.0,0.28521527]
[1617967517606,5.22171105,58608.0,58607.0,0.28521527]
[1617967520211,3.72171105,58608.0,58607.0,0.28521527]
[1617967520611,6.06771961,58608.0,58607.0,0.28521527]
[1617967520812,7.06771961,58608.0,58607.0,0.28521527]
[1617967521110,7.39096195,58608.0,58607.0,0.28521527]
[1617967521511,7.84638501,58608.0,58607.0,0.28521527]
[1617967522015,9.34638501,58608.0,58607.0,0.28521527]
[1617967522914,7.84638501,58608.0,58607.0,0.28521527]
[1617967524013,9.34638501,58608.0,58607.0,0.28521527]
[1617967524615,9.34638501,58608.0,58607.0,0.28420082]
[1617967525615,7.84638501,58608.0,58607.0,0.28420082]
[1617967526415,7.82609543,58608.0,58607.0,0.28420082]
[1617967527015,6.82609543,58608.0,58607.0,0.28420082]
[1617967527218,7.82609543,58608.0,58607.0,0.28420082]
[1617967527616,7.37067237,58608.0,58607.0,0.28420082]
[1617967527817,7.81946732,58608.0,58607.0,0.28420082]
[1617967528919,4.14996732,58608.0,58607.0,0.28420082]
[1617967529320,6.63716732,58608.0,58607.0,0.28420082]
[1617967529521,5.86513003,58608.0,58607.0,0.28420082]
[1617967530122,6.18166742,58608.0,58607.0,0.28420082]
[1617967531024,6.63046564,58608.0,58607.0,0.28420082]
[1617967531629,4.14326564,58608.0,58607.0,0.28420082]
[1617967531868,4.14326564,58608.0,58607.0,3.20450082]
[1617967532078,3.14326564,58608.0,58607.0,3.20450082]
[1617967532325,2.37793003,58608.0,58607.0,3.20450082]
[1617967532824,2.14099907,58608.0,58607.0,3.20450082]
[1617967534525,3.14099907,58608.0,58607.0,3.20450082]
[1617967534726,2.14099907,58608.0,58607.0,3.20450082]
[1617967536430,1.57507042,58608.0,58607.0,3.20450082]
[1617967536829,2.14123477,58608.0,58607.0,3.20450082]
[1617967539334,1.57507042,58608.0,58607.0,3.20450082]
[1617967540132,2.14122932,58608.0,58607.0,3.20450082]
[1617967541034,1.64122932,58608.0,58607.0,3.20450082]
[1617967541435,1.07507042,58608.0,58607.0,3.20450082]
[1617967546839,1.05478207,58608.0,58607.0,3.20450082]
[1617967547141,1.283652,58608.0,58607.0,3.20450082]
[1617967547340,1.283652,58608.0,58607.0,0.28420082]
[1617967547540,1.05478207,58608.0,58607.0,0.28420082]
[1617967550041,1.05478207,58608.0,58607.0,3.05400082]
[1617967550444,1.28364835,58608.0,58607.0,3.05400082]
[1617967550944,1.05478207,58608.0,58607.0,3.05400082]
[1617967551345,1.05478207,58608.0,58607.0,0.28420082]
[1617967555691,1.05478207,58608.0,58607.0,2.88550082]
[1617967556457,1.05478207,58608.0,58607.0,3.02486082]
[1617967556656,1.05478207,58608.0,58607.0,3.07626082]
[1617967556855,1.05478207,58608.0,58607.0,3.02486082]
[1617967557690,0.54952578,58608.0,58607.0,3.02486082]
[1617967558057,0.54952578,58608.0,58607.0,0.28420082]
[1617967558257,3.14982578,58608.0,58607.0,0.28420082]
[1617967558693,3.88446261,58608.0,58607.0,0.28420082]
[1617967559060,4.19687251,58608.0,58607.0,0.28420082]
[1617967559259,1.59657251,58608.0,58607.0,0.28420082]
[1617967559460,1.59657251,58608.0,58607.0,3.62690082]
[1617967559861,1.05518036,58608.0,58607.0,3.62690082]
[1617967566674,0.54952578,58608.0,58607.0,3.62690082]
[1617967567176,0.52924111,58608.0,58607.0,3.62690082]
[1617967567578,1.03536193,58608.0,58607.0,3.62690082]
[1617967570582,0.52924111,58608.0,58607.0,3.62690082]
[1617967572184,0.52924111,58608.0,58607.0,3.92771968]
[1617967573785,0.89354126,58608.0,58607.0,3.92771968]
[1617967574788,0.89354126,58608.0,58607.0,3.62690082]
[1617967575390,0.89354126,58608.0,58607.0,3.92781716]
[1617967575890,1.07631441,58608.0,58607.0,3.62690082]
[1617967576290,0.89354126,58608.0,58607.0,3.62690082]
[1617967578596,1.3994993,58608.0,58607.0,3.62690082]
[1617967579196,1.50675585,58608.0,58607.0,3.62690082]
[1617967579897,1.68952393,58608.0,58607.0,3.62690082]
[1617967582001,1.79933393,58608.0,58607.0,3.62690082]
[1617967587108,1.77904901,58608.0,58607.0,3.62690082]
[1617967588208,0.21706655,58608.0,58607.0,3.62690082]
[1617967588407,0.10725655,58608.0,58607.0,3.62690082]
[1617967588608,1.28101065,58608.0,58607.0,3.62690082]
[1617967589410,1.45988488,58608.0,58607.0,3.62690082]
[1617967589813,1.28101065,58608.0,58607.0,3.62690082]
[1617967590321,1.45988371,58608.0,58607.0,3.62690082]
[1617967590813,4.46278371,58608.0,58607.0,0.28420082]
[1617967591317,4.73532554,58608.0,58607.0,0.28420082]
[1617967591926,1.73242554,58608.0,58607.0,0.28420082]
[1617967592131,2.73242554,58608.0,58607.0,0.28420082]
[1617967592716,2.45988371,58608.0,58607.0,0.28420082]
[1617967593116,5.76108371,58608.0,58607.0,0.28420082]
[1617967593616,6.43842291,58608.0,58607.0,0.28420082]
[1617967593915,3.13722291,58608.0,58607.0,0.28420082]
[1617967594318,3.13722291,58608.0,58607.0,3.03840082]
[1617967594523,2.45988371,58608.0,58607.0,3.03840082]
[1617967595119,1.45988371,58608.0,58607.0,3.03840082]
[1617967595320,2.45988371,58608.0,58607.0,3.03840082]
[1617967595622,2.45988371,58608.0,58607.0,0.28420082]
[1617967600426,2.58581371,58608.0,58607.0,0.28420082]
[1617967600830,1.58581371,58608.0,58607.0,0.28420082]
[1617967601028,2.58581371,58608.0,58607.0,0.28420082]
[1617967601830,2.85885475,58608.0,58607.0,0.28420082]
[1617967602146,1.73292475,58608.0,58607.0,2.79210082]
[1617967602368,1.45988371,58608.0,58607.0,2.79210082]
[1617967603835,1.45988371,58608.0,58607.0,2.84260082]
[1617967606140,1.45988371,58608.0,58607.0,2.79210082]
[1617967607242,1.90550493,58608.0,58607.0,2.79210082]
[1617967607856,1.88521981,58608.0,58607.0,2.79210082]
[1617967611949,1.88521981,58608.0,58607.0,2.84380082]
[1617967612448,1.88521981,58608.0,58607.0,0.33590082]
[1617967612649,4.81121981,58608.0,58607.0,0.33590082]
[1617967613252,5.07567842,58608.0,58607.0,0.33590082]
[1617967613651,5.07567842,58608.0,58607.0,0.28420082]
[1617967615653,2.14967842,58608.0,58607.0,0.28420082]
[1617967615955,2.14967842,58608.0,58607.0,2.85280082]
[1617967616156,2.14967842,58608.0,58607.0,3.15425186]
[1617967616157,1.88521981,58608.0,58607.0,3.15425186]
[1617967617164,1.88521981,58608.0,58607.0,3.51582611]
[1617967618158,1.88521981,58608.0,58607.0,3.15425186]
[1617967618758,1.88521981,58608.0,58607.0,3.51584854]
[1617967619159,1.88521981,58608.0,58607.0,3.15425186]
[1617967621565,1.88521981,58608.0,58607.0,0.58565186]
[1617967624464,1.88521981,58608.0,58607.0,3.71327186]
[1617967625066,1.88521981,58608.0,58607.0,4.07476768]
[1617967625466,1.37932097,58608.0,58607.0,4.07476768]
[1617967625966,1.88591799,58608.0,58607.0,4.07476768]
[1617967626370,1.37932097,58608.0,58607.0,4.07476768]
[1617967627767,1.86554056,58608.0,58607.0,4.07476768]
[1617967628268,1.86554056,58608.0,58607.0,3.71327186]
[1617967629469,1.79885264,58608.0,58607.0,3.71327186]
[1617967630170,1.61997958,58608.0,58607.0,3.71327186]
[1617967630771,1.11347648,58608.0,58607.0,4.07433625]
[1617967631074,1.27873163,58608.0,58607.0,4.07433625]
[1617967631273,1.27873163,58608.0,58607.0,5.07433625]
[1617967631573,1.27873163,58608.0,58607.0,4.07433625]
[1617967631974,1.11347648,58608.0,58607.0,4.07433625]
[1617967633975,1.11347648,58608.0,58607.0,4.12613625]
[1617967634278,1.11347648,58608.0,58607.0,4.07433625]
[1617967635375,1.11347648,58608.0,58607.0,5.12533625]
[1617967636077,1.11347648,58608.0,58607.0,4.12533625]
[1617967636278,1.11347648,58608.0,58607.0,5.12533625]
[1617967636578,0.66785526,58608.0,58607.0,5.12533625]
[1617967636879,0.83298297,58608.0,58607.0,5.12533625]
[1617967637278,0.66785526,58608.0,58607.0,5.12533625]
[1617967638280,0.66785526,58608.0,58607.0,4.07433625]
[1617967640284,0.66785526,58608.0,58607.0,1.04473625]
[1617967641090,0.66785526,58608.0,58607.0,1.48529747]
[1617967641487,0.83296862,58608.0,58607.0,1.48529747]
[1617967641988,0.66785526,58608.0,58607.0,1.48529747]
[1617967642387,0.83296677,58608.0,58607.0,2.48529747]
[1617967642587,0.83296677,58608.0,58607.0,1.48529747]
[1617967642788,0.66785526,58608.0,58607.0,1.48529747]
[1617967643387,0.66785526,58608.0,58607.0,2.48529747]
[1617967643587,0.66785526,58608.0,58607.0,1.48529747]
[1617967643888,0.66785526,58608.0,58607.0,2.48529747]
[1617967644287,0.66785526,58608.0,58607.0,2.04473625]
[1617967645790,0.66785526,58608.0,58607.0,1.24473625]
[1617967646193,0.66785526,58608.0,58607.0,2.6850231]
[1617967646692,0.66785526,58608.0,58607.0,2.82778567]
[1617967647092,0.66785526,58608.0,58607.0,4.32778567]
[1617967647704,0.30357977,58608.0,58607.0,4.32778567]
[1617967647993,0.01021317,58608.0,58607.0,4.32778567]
[1617967648395,0.01021341,58610.0,58607.0,4.32778567]
[1617967648617,0.01021341,58610.0,58607.0,6.98198567]
[1617967648792,0.01021341,58610.0,58608.0,0.01520978]
[1617967648994,0.01021331,58611.0,58609.0,2.29950964]
[1617967649298,0.01021331,58611.0,58610.0,1.7]
[1617967649495,0.01021331,58611.0,58610.0,2.5603174]
[1617967649695,0.01021331,58611.0,58610.0,3.84552667]
[1617967649897,0.01021331,58611.0,58610.0,3.93678239]
[1617967650297,0.01021263,58614.0,58610.0,4.43613045]
[1617967650698,0.01021263,58614.0,58610.0,3.43613045]
[1617967650898,0.01021263,58614.0,58613.0,1.79885351]
[1617967651098,0.01021263,58614.0,58613.0,1.99885351]
[1617967651298,0.01021263,58614.0,58613.0,3.76885351]
[1617967651501,0.01021263,58614.0,58613.0,3.89131829]
[1617967651800,0.01021263,58614.0,58613.0,4.04340065]
[1617967654402,0.01021263,58614.0,58613.0,7.03570065]
[1617967655207,0.01021263,58614.0,58613.0,5.53570065]
[1617967655402,0.3641158,58618.0,58613.0,5.53570065]
[1617967655603,0.3641158,58618.0,58613.0,2.54340065]
[1617967655828,0.3641158,58618.0,58617.0,1.0]
[1617967656204,0.36354865,58621.0,58617.0,1.70494854]
[1617967656705,0.36354865,58621.0,58618.0,0.43494563]
[1617967657106,0.36354865,58621.0,58620.0,1.0]
[1617967657307,0.36354865,58621.0,58620.0,1.1286]
[1617967657507,0.36353805,58622.0,58620.0,1.50585655]
[1617967657907,0.56545536,58641.0,58620.0,1.50585655]
[1617967657908,0.36353334,58623.0,58621.0,0.01520772]
[1617967658306,0.36353334,58623.0,58622.0,0.27]
[1617967658506,1.88849124,58657.0,58622.0,1.27]
[1617967658808,2.08849124,58657.0,58632.0,3.0493]
[1617967659007,0.5048656,58634.0,58632.0,3.15714]
[1617967659208,0.5048656,58634.0,58633.0,0.27]
[1617967659507,0.56543735,58642.0,58641.0,0.10725655]
[1617967659909,0.56543735,58642.0,58641.0,0.37725655]
[1617967660108,0.56543735,58642.0,58641.0,0.39246396]
[1617967660311,1.87810851,58642.0,58641.0,0.39246396]
[1617967664528,1.31267116,58642.0,58641.0,3.17896396]
[1617967665922,1.31267116,58642.0,58641.0,0.39246396]
[1617967668123,1.29239516,58642.0,58641.0,0.39246396]
[1617967668419,1.45622579,58642.0,58641.0,0.39246396]
[1617967668939,1.29239516,58642.0,58641.0,0.39246396]
[1617967669538,1.29239516,58642.0,58641.0,3.54606396]
[1617967671026,1.45618631,58642.0,58641.0,3.54606396]
[1617967671321,1.45618631,58642.0,58641.0,0.39246396]
[1617967671526,1.29239516,58642.0,58641.0,0.39246396]
[1617967674023,0.50485799,58642.0,58641.0,0.39246396]
[1617967674342,0.60770984,58642.0,58641.0,0.39246396]